bitfinex-derivatives/quotes_ETHF0:USTF0_20250116
["timestamp","ask_amount","ask_price","bid_price","bid_amount"]
[1737070129804,0.6026,3296.2,3295.9,2.317629]
[1737070129997,0.6026,3296.2,3296.1,0.60686]
[1737070130510,0.6026,3296.2,3296.1,41.40449613]
[1737070132794,1.1951,3296.5,3296.4,0.60681]
[1737070133104,1.781,3296.5,3296.4,2.924439]
[1737070134097,3.56112333,3296.8,3296.7,0.60675]
[1737070134398,3.56112333,3296.8,3296.7,5.242008]
[1737070134797,3.56112333,3296.8,3296.7,2.924379]
[1737070135696,3.56112333,3296.8,3296.7,43.724379]
[1737070136799,1.1737,3297.1,3297.0,0.60669]
[1737070140407,1.1737,3297.1,3296.4,4.72481]
[1737070140608,0.60673,3296.8,3296.7,2.317629]
[1737070140802,1.1737,3297.1,3296.2,6.24591304]
[1737070141003,0.60673,3296.9,3296.7,2.924379]
[1737070141404,0.60672,3296.9,3296.7,2.924379]
[1737070141907,0.60673,3296.8,3296.7,2.317629]
[1737070142106,0.60673,3296.9,3296.7,2.924379]
[1737070142505,1.1737,3297.1,3296.7,2.317629]
[1737070142702,0.60673,3296.8,3296.7,2.317629]
[1737070142908,0.60673,3296.8,3296.7,2.924379]
[1737070143105,1.1737,3297.1,3296.1,43.52312]
[1737070143411,0.60677,3296.6,3296.5,2.924409]
[1737070144301,0.60676,3296.7,3296.6,0.60676]
[1737070144701,1.1737,3297.1,3296.5,2.924409]
[1737070144702,0.60677,3296.6,3296.5,2.924409]
[1737070145001,0.5656,3296.6,3296.5,2.924409]
[1737070145204,1.17237,3296.6,3296.5,2.924409]
[1737070145403,1.78107,3296.6,3296.5,2.924419]
[1737070146199,1.78107,3296.6,3296.5,2.317629]
[1737070147605,1.78107,3296.6,3296.3,0.60682]
[1737070147805,0.5763,3296.5,3296.2,2.317629]
[1737070148216,0.60682,3296.3,3296.2,2.924459]
[1737070148715,0.60686,3296.1,3296.0,3.2078]
[1737070149312,0.60686,3296.1,3296.0,3.81468]
[1737070149518,0.60681,3296.4,3295.9,2.924519]
[1737070149715,0.6043,3296.0,3295.9,2.317629]
[1737070150013,1.21118,3296.0,3295.9,2.317629]
[1737070150515,1.80018,3296.0,3295.9,2.317629]
[1737070155817,0.60693,3295.8,3295.5,40.8]
[1737070156013,0.5696,3295.9,3295.8,0.60692]
[1737070156417,0.5696,3295.9,3295.7,2.317629]
[1737070156719,0.5696,3295.9,3295.8,0.60692]
[1737070157307,0.5696,3295.9,3295.7,2.924549]
[1737070157714,0.5696,3295.9,3295.7,2.317629]
[1737070157919,0.5696,3295.9,3295.8,0.60692]
[1737070158220,0.5696,3295.9,3295.7,2.317629]
[1737070158421,1.1765,3295.9,3295.7,2.924559]
[1737070158924,0.5696,3295.9,3295.7,2.924559]
[1737070159414,1.1933,3296.0,3295.7,2.317629]
[1737070159616,1.1933,3296.0,3295.9,0.6069]
[1737070159916,0.589,3296.0,3295.9,0.6069]
[1737070161020,0.589,3296.0,3295.8,0.60691]
[1737070161519,0.589,3296.0,3295.9,0.6069]
[1737070162113,3.56112333,3296.2,3296.1,0.60686]
[1737070162320,4.74816444,3296.4,3296.3,0.60681]
[1737070162522,0.60684,3296.2,3296.1,2.317629]
[1737070162811,4.74816444,3296.4,3295.8,3.2078]
[1737070162812,4.74816444,3296.4,3295.8,5.525429]
[1737070163011,0.60689,3296.0,3295.8,6.132329]
[1737070164514,0.60689,3296.0,3295.9,0.6069]
[1737070164715,2.29847,3296.1,3295.9,0.6069]
[1737070166126,1.6916,3296.1,3295.8,5.525429]
[1737070166417,1.6916,3296.1,3296.0,0.60688]
[1737070166820,5.26201622,3296.1,3296.0,0.60688]
[1737070168522,3.57041622,3296.2,3296.1,0.60686]
[1737070168724,3.57041622,3296.2,3296.1,2.924489]
[1737070169820,4.17725622,3296.2,3296.1,2.924489]
[1737070170629,3.57041622,3296.2,3296.1,2.924489]
[1737070171723,4.17723622,3296.2,3296.1,2.924489]
[1737070173227,3.57041622,3296.2,3296.1,2.924489]
[1737070173623,4.17723622,3296.2,3296.1,2.924489]
[1737070173927,3.57041622,3296.2,3296.1,2.924489]
[1737070175219,4.17722622,3296.3,3296.2,0.60682]
[1737070176023,4.17722622,3296.3,3296.2,3.81462]
[1737070176024,3.57041622,3296.3,3296.2,3.81462]
[1737070176224,3.57041622,3296.3,3296.2,4.44292]
[1737070176724,3.57041622,3296.4,3296.3,0.6068]
[1737070178127,3.57041622,3296.9,3296.8,0.60671]
[1737070178431,3.57041622,3296.9,3296.5,2.317629]
[1737070178635,0.60675,3296.6,3296.5,2.317629]
[1737070179928,2.7833,3296.8,3296.3,0.60679]
[1737070180131,2.7833,3296.8,3296.2,3.8361]
[1737070180132,0.6325,3296.5,3296.2,3.2078]
[1737070180430,0.6068,3296.3,3296.1,2.924459]
[1737070180833,0.6325,3296.5,3296.1,0.60683]
[1737070181032,0.60682,3296.2,3296.0,0.60685]
[1737070181219,0.60682,3296.2,3296.1,2.317629]
[1737070181625,0.60682,3296.2,3296.1,2.924469]
[1737070181925,0.60682,3296.2,3296.1,2.317629]
[1737070183339,0.60682,3296.2,3295.8,2.317629]
[1737070183340,0.60688,3295.9,3295.8,2.317629]
[1737070185335,1.21328,3295.9,3295.8,2.317629]
[1737070187733,4.78983205,3295.9,3295.8,2.317629]
[1737070189537,0.6069,3295.8,3295.7,40.8]
[1737070189739,1.8665,3295.8,3295.7,40.8]
[1737070191541,5.44305205,3295.8,3295.7,40.8]
[1737070193738,5.44305205,3295.8,3295.7,41.40691]
[1737070194037,4.83615205,3295.8,3295.7,41.40691]
[1737070194343,4.83615205,3295.8,3295.7,40.8]
[1737070194646,4.83615205,3295.8,3295.7,41.40691]
[1737070195747,3.57655205,3295.8,3295.7,3.81471]
[1737070196141,3.57655205,3295.8,3295.7,44.61471]
[1737070197649,3.57655205,3296.1,3296.0,0.60686]
[1737070197844,4.18339205,3296.1,3296.0,2.317629]
[1737070198348,0.60687,3296.0,3295.8,1.23958]
[1737070199447,0.60688,3295.9,3295.8,0.6327]
[1737070199647,0.60687,3296.0,3295.8,1.23959]
[1737070199846,5.35536444,3296.2,3295.8,0.6327]
[1737070200052,5.96220444,3296.2,3296.1,2.317629]
[1737070200548,5.96220444,3296.2,3296.1,2.924469]
[1737070200751,5.35536444,3296.2,3296.1,2.924469]
[1737070201255,5.96219444,3296.2,3296.1,2.924469]
[1737070201457,5.35536444,3296.2,3296.1,2.924469]
[1737070201750,4.74816444,3296.2,3296.1,6.132269]
[1737070201965,4.74816444,3296.3,3296.2,0.60683]
[1737070202456,4.74816444,3296.3,3296.2,1.81283]
[1737070202659,3.80926444,3296.3,3296.2,1.81283]
[1737070203155,0.81006433,3296.3,3296.2,6.81283]
[1737070203350,0.02223533,3296.3,3296.2,6.81283]
[1737070203549,3.57659773,3296.8,3296.7,0.60673]
[1737070203753,3.57659773,3296.8,3296.7,6.132159]
[1737070204056,3.57659773,3296.8,3296.7,46.325429]
[1737070204355,3.57659773,3296.8,3296.7,46.932159]
[1737070205054,4.15009773,3296.9,3296.7,6.132159]
[1737070206257,4.75679773,3296.9,3296.7,6.132159]
[1737070206452,4.15009773,3296.9,3296.7,6.132159]
[1737070206955,4.15009773,3296.9,3296.8,0.60672]
[1737070207352,0.5735,3296.9,3296.8,0.60672]
[1737070207558,0.60672,3296.8,3296.7,5.525429]
[1737070207755,0.60675,3296.6,3296.5,4.73465035]
[1737070207958,0.60675,3296.6,3296.5,2.85745035]
[1737070208455,0.60675,3296.6,3296.2,7.06574514]
[1737070208456,0.60681,3296.3,3296.2,7.06574514]
[1737070208854,0.60681,3296.3,3296.0,2.924489]
[1737070209053,0.60683,3296.2,3296.0,2.924489]
[1737070209559,0.60682,3296.3,3296.1,0.60684]
[1737070209954,3.57659773,3296.2,3296.1,0.60684]
[1737070211051,3.57659773,3296.2,3296.0,2.317629]
[1737070211255,0.60684,3296.1,3296.0,2.317629]
[1737070211555,3.57659773,3296.2,3296.0,2.317629]
[1737070211556,4.18343773,3296.2,3296.0,2.317629]
[1737070211744,1.7645,3296.1,3296.0,2.924489]
[1737070212254,1.7645,3296.1,3296.0,2.317629]
[1737070212554,5.34109773,3296.1,3296.0,2.317629]
[1737070213157,5.94793773,3296.1,3296.0,2.317629]
[1737070214157,5.34109773,3296.1,3295.8,0.60689]
[1737070214361,0.60688,3295.9,3295.7,5.60631]
[1737070214653,3.2078,3296.0,3295.7,0.5866]
[1737070214959,3.81467,3296.0,3295.7,1.1935]
[1737070215150,3.2078,3296.0,3295.9,2.317629]
[1737070215349,3.81467,3296.0,3295.9,2.317629]
[1737070215750,0.60692,3295.7,3295.5,2.924579]
[1737070215959,0.6224,3295.6,3295.5,2.317629]
[1737070216155,1.22934,3295.6,3295.5,2.317629]
[1737070216356,0.6224,3295.6,3295.5,2.924579]
[1737070216552,0.6224,3295.6,3295.5,2.317629]
[1737070216757,0.6224,3295.6,3295.5,2.924579]
[1737070219260,0.6224,3295.6,3295.5,2.317629]
[1737070219457,1.22934,3295.6,3295.5,2.317629]
[1737070220363,3.57391619,3295.8,3295.5,2.317629]
[1737070220578,0.5678,3295.9,3295.8,0.6069]
[1737070220761,1.1422,3296.1,3296.0,2.924489]
[1737070220960,0.5705,3296.1,3296.0,2.924489]
[1737070221760,4.14308356,3296.1,3296.0,2.924489]
[1737070223264,0.5705,3296.1,3296.0,2.924489]
[1737070223671,1.17734,3296.1,3296.0,2.924489]
[1737070224165,0.6069,3295.8,3295.7,6.132339]
[1737070224474,0.6069,3295.9,3295.8,0.60689]
[1737070224765,0.5705,3296.1,3295.7,5.525429]
[1737070224766,4.14308356,3296.1,3295.7,5.525429]
[1737070224955,1.2041,3295.8,3295.7,6.132339]
[1737070225156,1.2041,3295.8,3295.7,5.525429]
[1737070225563,0.5972,3295.8,3295.7,6.132349]
[1737070226164,1.2041,3295.8,3295.7,6.132349]
[1737070226466,0.5972,3295.8,3295.7,6.132349]
[1737070226970,1.2041,3295.8,3295.7,6.132349]
[1737070227168,0.5972,3295.8,3295.7,6.132349]
[1737070227371,1.2041,3295.8,3295.7,6.132349]
[1737070227966,1.2041,3295.8,3295.7,2.317629]
[1737070228362,0.5972,3295.8,3295.7,2.924549]
[1737070228966,1.2041,3295.8,3295.7,2.317629]
[1737070229167,1.2041,3295.8,3295.4,2.924589]
[1737070229168,0.60695,3295.6,3295.4,2.924589]
[1737070229567,0.60693,3295.7,3295.5,0.60695]
[1737070230068,1.18094,3295.6,3295.5,0.60695]
[1737070230462,0.574,3295.6,3295.5,0.60695]
[1737070231267,1.18095,3295.6,3295.4,2.924599]
[1737070232064,1.18095,3295.6,3295.4,2.317629]
[1737070232369,0.574,3295.6,3295.4,2.317629]
[1737070232572,0.574,3295.6,3295.5,0.60696]
[1737070232967,3.57258356,3295.7,3295.6,0.60694]
[1737070233474,2.3819349,3295.7,3295.6,0.60694]
[1737070235876,2.3819349,3295.7,3295.6,41.40694]
[1737070236279,4.76378092,3296.1,3296.0,0.60686]
[1737070236280,2.3819349,3296.1,3296.0,0.60686]
[1737070236573,2.3819349,3296.1,3296.0,6.132289]
[1737070237166,2.3819349,3296.1,3296.0,46.932289]
[1737070237576,2.3819349,3296.3,3296.2,0.60683]
[1737070238679,2.3819349,3296.4,3296.3,0.60681]
[1737070238875,2.3819349,3296.4,3296.3,43.724439]
[1737070239472,3.57258356,3296.5,3296.3,48.117629]
[1737070239667,3.57258356,3296.5,3296.4,3.81459]
[1737070240169,3.57258356,3297.0,3296.9,0.6067]
[1737070241375,0.5846,3297.2,3296.8,4.4128]
[1737070241577,1.19125,3297.2,3297.1,2.317629]
[1737070243781,0.5846,3297.2,3297.1,2.317629]
[1737070243981,1.19124,3297.2,3297.1,2.317629]
[1737070244178,0.5846,3297.2,3297.1,2.317629]
[1737070244878,0.5846,3297.2,3297.1,2.924289]
[1737070246282,4.17518356,3297.4,3297.1,2.317629]
[1737070246477,4.17518356,3297.4,3297.3,0.60662]
[1737070247885,0.6026,3297.4,3297.3,0.60662]
[1737070248184,0.6026,3297.4,3297.2,44.61443]
[1737070248385,0.6026,3297.4,3297.2,44.0078]
[1737070248585,0.6026,3297.4,3297.3,0.60662]
[1737070248778,0.6026,3297.4,3297.2,44.0078]
[1737070248985,0.6026,3297.4,3297.2,44.61443]
[1737070249184,0.6026,3297.4,3297.2,44.0078]
[1737070249387,0.6026,3297.4,3297.3,0.60662]
[1737070250485,0.6026,3297.4,3297.2,3.2078]
[1737070250683,3.2078,3297.3,3296.8,3.522629]
[1737070250880,0.60671,3296.9,3296.8,3.522629]
[1737070251180,0.60664,3297.3,3296.8,9.048058]
[1737070251386,1.20922,3297.4,3297.2,0.60663]
[1737070251689,0.6026,3297.4,3297.2,3.2078]
[1737070251887,1.20921,3297.4,3297.2,3.81443]
[1737070252286,0.6026,3297.4,3297.2,3.2078]
[1737070252490,0.6026,3297.4,3297.3,0.60662]
[1737070253888,0.5806,3297.6,3297.5,0.60659]
[1737070254080,0.5806,3297.6,3297.5,2.924219]
[1737070254282,0.5806,3297.6,3297.5,43.724219]
[1737070255888,1.18717,3297.6,3297.5,43.117629]
[1737070256087,0.5806,3297.6,3297.5,43.117629]
[1737070256286,0.5806,3297.6,3297.5,43.724219]
[1737070256483,0.5806,3297.6,3297.5,43.117629]
[1737070256687,1.18717,3297.6,3297.5,43.117629]
[1737070259084,1.18717,3297.6,3297.5,43.724219]
[1737070259391,1.18717,3297.6,3297.5,43.117629]
[1737070259392,0.5806,3297.6,3297.5,43.117629]
[1737070259589,0.5806,3297.6,3297.5,43.724219]
[1737070259987,1.2314,3297.9,3297.8,0.60653]
[1737070260298,1.2314,3297.9,3297.8,2.924159]
[1737070260485,0.6094,3298.1,3297.8,4.635258]
[1737070260689,0.6094,3298.1,3298.0,3.8143]
[1737070261385,1.21588,3298.1,3298.0,3.2078]
[1737070261591,0.6094,3298.1,3298.0,3.8143]
[1737070262485,0.6094,3298.1,3298.0,3.2078]
[1737070263091,1.21588,3298.1,3298.0,3.2078]
[1737070263386,0.6094,3298.1,3298.0,3.2078]
[1737070264182,0.6094,3298.1,3298.0,3.8143]
[1737070266096,0.6094,3298.1,3298.0,6.131929]
[1737070268488,1.2021,3298.3,3298.2,0.60646]
[1737070269490,0.6138,3298.6,3298.2,1.204]
[1737070269690,0.5809,3298.8,3298.5,5.525429]
[1737070269890,1.2446,3299.1,3298.7,2.317629]
[1737070270096,1.2446,3299.1,3299.0,2.317629]
[1737070270393,1.2446,3299.1,3299.0,2.923959]
[1737070271293,1.2446,3299.1,3299.0,2.317629]
[1737070271498,1.85091,3299.1,3299.0,2.317629]
[1737070271896,5.05871,3299.1,3299.0,2.317629]
[1737070272192,1.85091,3299.1,3299.0,2.317629]
[1737070278798,1.85091,3299.1,3299.0,2.923959]
[1737070279400,1.85091,3299.1,3299.0,2.317629]
[1737070279899,0.6308,3299.1,3299.0,2.923959]
[1737070280094,0.5773,3299.2,3299.1,0.60631]
[1737070280301,0.5773,3299.2,3299.1,2.923939]
[1737070280495,0.5773,3299.2,3298.5,5.92783]
[1737070280496,0.60637,3298.9,3298.5,5.92783]
[1737070280696,1.2106,3298.8,3298.7,0.60639]
[1737070280998,1.81697,3298.8,3298.7,0.60639]
[1737070281199,0.6064,3298.6,3298.5,3.2078]
[1737070281396,0.6064,3298.6,3298.5,3.81422]
[1737070281699,0.6064,3298.6,3298.5,5.525429]
[1737070283893,0.6064,3298.6,3298.5,2.317629]
[1737070286397,1.2106,3298.8,3298.5,2.924049]
[1737070286598,0.6064,3298.6,3298.5,2.924049]
[1737070287805,0.6064,3298.7,3298.5,2.924049]
[1737070288205,1.2106,3298.8,3298.5,2.317629]
[1737070288599,0.60639,3298.7,3298.5,2.924039]
[1737070288799,0.5794,3298.6,3298.5,2.924039]
[1737070288999,1.1858,3298.6,3298.5,2.317629]
[1737070289499,0.5794,3298.6,3298.5,2.924049]
[1737070290602,0.6191,3298.8,3298.7,0.60639]
[1737070290798,0.5794,3299.0,3298.6,0.6047]
[1737070291000,1.75863,3299.0,3298.9,2.923979]
[1737070291298,1.1523,3299.0,3298.9,2.923979]
[1737070292297,0.5794,3299.0,3298.9,2.923979]
[1737070292497,6.78038356,3299.3,3298.9,2.317629]
[1737070292706,6.78038356,3299.3,3299.2,2.923919]
[1737070293996,1.20296,3299.4,3299.2,2.317629]
[1737070294202,1.20296,3299.4,3299.3,0.60628]
[1737070294601,1.20296,3299.4,3299.2,2.317629]
[1737070294602,0.5967,3299.4,3299.2,2.317629]
[1737070294802,0.60628,3299.3,3299.2,2.317629]
[1737070295008,0.60628,3299.3,3299.2,2.923919]
[1737070295502,0.60628,3299.3,3299.2,2.317629]
[1737070295699,0.60628,3299.3,3299.2,2.923919]
[1737070295897,0.60628,3299.3,3299.2,2.317629]
[1737070296297,0.60628,3299.3,3299.2,2.923919]
[1737070296497,0.60628,3299.3,3299.2,2.317629]
[1737070298402,0.5967,3299.4,3299.2,2.923919]
[1737070298604,1.20297,3299.4,3299.2,2.923919]
[1737070299506,0.60628,3299.3,3299.2,2.317629]
[1737070300508,4.11548356,3299.5,3299.2,4.635258]
[1737070300712,4.11548356,3299.5,3299.4,0.60626]
[1737070301309,3.57258356,3299.5,3299.4,41.40626]
[1737070301912,3.57258356,3299.6,3299.5,0.60624]
[1737070302108,3.57258356,3299.6,3299.5,2.923869]
[1737070302511,3.57258356,3299.6,3299.5,0.60624]
[1737070302712,3.57258356,3299.6,3299.5,2.923869]
[1737070303310,3.57258356,3299.6,3299.5,43.723869]
[1737070303507,0.60621,3299.7,3299.5,43.117629]
[1737070303712,0.6062,3299.7,3299.6,0.60621]
[1737070303913,4.17877356,3299.8,3299.7,0.6062]
[1737070304110,3.57258356,3299.8,3299.7,0.6062]
[1737070305212,0.60618,3299.8,3299.7,0.60619]
[1737070305409,0.60627,3299.4,3299.3,0.60627]
[1737070305614,0.60627,3299.4,3299.3,2.317629]
[1737070305913,0.60627,3299.4,3299.3,4.635258]
[1737070306113,0.60627,3299.4,3299.3,5.241538]
[1737070306307,0.5501,3299.6,3299.3,4.635258]
[1737070306510,0.6062,3299.8,3299.7,0.6062]
[1737070307204,0.6062,3299.8,3299.7,41.9705]
[1737070307410,4.76378092,3299.9,3299.7,41.3643]
[1737070307608,4.76378092,3299.9,3299.8,0.60618]
[1737070307809,1.73895,3300.0,3299.9,0.60617]
[1737070308111,0.60618,3299.9,3299.8,0.60617]
[1737070308616,1.73896,3300.0,3299.9,0.60617]
[1737070309613,4.76378092,3300.1,3299.9,2.317629]
[1737070309810,4.76378092,3300.1,3300.0,0.60615]
[1737070310008,0.60617,3299.9,3299.8,2.317629]
[1737070310519,1.69687,3299.9,3299.8,2.317629]
[1737070311718,6.46065092,3299.9,3299.8,2.317629]
[1737070312719,6.46065092,3299.9,3298.0,53.534]
[1737070312720,10.31658092,3299.9,3298.5,7.06574514]
[1737070312915,0.60639,3298.7,3298.3,0.60645]
[1737070313123,3.2078,3298.8,3298.2,9.96139352]
[1737070313416,0.60645,3298.4,3298.3,0.60645]
[1737070313617,0.60643,3298.5,3298.4,0.60642]
[1737070314027,0.5379,3298.8,3298.4,2.317629]
[1737070314214,0.60638,3298.8,3298.7,2.317629]
[1737070314412,0.60638,3298.8,3298.7,2.924019]
[1737070316213,3.57001483,3298.9,3298.7,2.924019]
[1737070316409,4.17636483,3298.9,3298.8,1.19667]
[1737070316615,4.17636483,3298.9,3298.8,1.77447]
[1737070316818,4.17636483,3298.9,3298.8,42.57447]
[1737070317119,4.17636483,3298.9,3297.8,3.2078]
[1737070317120,0.6065,3298.1,3297.8,3.2078]
[1737070317323,0.6065,3298.1,3297.7,9.99869352]
[1737070317518,0.6065,3298.1,3298.0,9.39497843]
[1737070317817,1.6884,3298.1,3298.0,43.117629]
[1737070319624,5.25841483,3298.1,3298.0,43.117629]
[1737070320321,3.57001483,3298.1,3298.0,43.117629]
[1737070320623,0.07001483,3298.1,3298.0,46.041768]
[1737070320824,0.07001483,3298.2,3298.0,45.435258]
[1737070321124,0.07001483,3298.2,3298.1,4.128129]
[1737070321819,4.76378092,3298.5,3298.4,0.60644]
[1737070322028,4.76378092,3298.5,3298.4,46.931869]
[1737070322518,3.2078,3298.6,3297.8,7.08095231]
[1737070322721,0.60653,3297.9,3297.8,7.08095231]
[1737070323115,0.60653,3298.0,3297.8,48.48750231]
[1737070323314,0.6065,3298.1,3297.8,47.88095231]
[1737070323621,0.60653,3297.9,3297.8,47.88095231]
[1737070323820,0.60653,3297.9,3297.8,50.19858131]
[1737070324021,0.60653,3297.9,3297.8,43.724179]
[1737070324529,0.60653,3297.9,3297.8,43.117629]
[1737070325222,0.60653,3297.9,3297.8,43.724179]
[1737070325625,0.5873,3298.0,3297.9,0.60653]
[1737070326124,0.5873,3298.0,3297.8,40.8]
[1737070326321,0.60661,3297.5,3297.4,2.317629]
[1737070326827,0.60661,3297.5,3297.4,43.117629]
[1737070327417,3.2078,3297.6,3297.4,43.117629]
[1737070327418,0.5873,3298.0,3297.4,43.117629]
[1737070327614,0.60658,3297.7,3297.6,0.60657]
[1737070327817,0.60659,3297.7,3297.6,0.60658]
[1737070328027,0.6066,3297.6,3297.5,0.60659]
[1737070328526,0.60658,3297.7,3297.6,0.60657]
[1737070329431,3.2078,3298.3,3297.5,2.317629]
[1737070329625,0.60648,3298.2,3298.1,2.317629]
[1737070329927,5.29086,3298.3,3297.4,40.8]
[1737070329928,3.7747,3298.3,3297.4,40.8]
[1737070330114,0.60661,3297.5,3297.4,40.8]
[1737070333215,0.60668,3297.1,3297.0,2.317629]
[1737070333416,3.81448,3297.1,3297.0,2.317629]
[1737070333621,0.60674,3296.8,3296.6,4.27283347]
[1737070333821,0.60674,3296.8,3296.7,2.317629]
[1737070334222,0.60674,3296.8,3296.7,43.117629]
[1737070334424,0.60674,3296.8,3296.7,40.8]
[1737070334820,0.60674,3296.8,3296.7,41.40675]
[1737070335418,3.2078,3297.1,3297.0,0.6067]
[1737070335623,5.88578092,3297.8,3297.0,5.525429]
[1737070335923,0.60656,3297.8,3297.7,2.317629]
[1737070336132,0.60656,3297.8,3297.7,43.724199]
[1737070336330,4.76378092,3297.9,3297.7,43.117629]
[1737070336529,5.37032092,3297.9,3297.8,1.19225]
[1737070337333,0.60654,3297.9,3297.8,1.19225]
[1737070337728,3.2078,3297.9,3297.7,40.8]
[1737070338021,1.51646,3297.7,3297.1,0.60667]
[1737070338227,0.6067,3297.1,3297.0,0.60668]
[1737070338528,0.60658,3297.7,3297.6,0.60657]
[1737070338725,0.60653,3298.0,3297.9,0.60652]
[1737070338924,3.2078,3298.3,3297.6,0.534]
[1737070339420,3.81428,3298.3,3298.2,0.60648]
[1737070339624,4.76378092,3298.5,3298.3,0.60645]
[1737070339625,0.60646,3298.4,3298.3,0.60645]
[1737070339826,0.60646,3298.4,3298.3,0.534]
[1737070340922,3.2078,3298.4,3297.0,3.2078]
[1737070341123,0.60662,3297.4,3297.3,2.317629]
[1737070341329,0.60664,3297.3,3297.2,2.82627706]
[1737070341537,1.18954,3297.3,3297.2,43.62627706]
[1737070341740,1.18954,3297.3,3297.2,2.82627706]
[1737070342327,1.18954,3297.3,3297.2,43.62627706]
[1737070342631,1.18954,3297.3,3297.2,40.8]
[1737070342836,0.5829,3297.3,3296.7,0.5655]
[1737070343030,0.60674,3296.8,3296.7,0.5655]
[1737070343226,0.60674,3296.8,3296.7,41.3655]
[1737070343630,0.60672,3297.0,3296.9,0.60671]
[1737070343936,0.60672,3297.0,3296.9,2.82627706]
[1737070344829,0.60672,3297.0,3296.9,3.43299706]
[1737070345029,0.60669,3297.1,3297.0,0.60669]
[1737070346025,0.5829,3297.3,3296.9,2.82627706]
[1737070346237,0.6067,3297.0,3296.9,2.82627706]
[1737070346441,0.6067,3297.1,3296.9,2.82627706]
[1737070346734,0.6067,3297.1,3297.0,0.60668]
[1737070347440,0.5829,3297.3,3296.9,2.82627706]
[1737070347738,0.6067,3297.0,3296.9,3.43297706]
[1737070348536,0.6067,3297.1,3297.0,0.60668]
[1737070348735,3.2078,3297.4,3296.9,2.82627706]
[1737070349037,3.2078,3297.4,3296.7,41.3655]
[1737070349038,0.60662,3297.4,3297.3,2.82627706]
[1737070349438,0.60662,3297.4,3297.3,3.98061706]
[1737070349837,0.60659,3297.6,3297.5,0.60659]
[1737070350031,0.6066,3297.5,3297.4,1.19161]
[1737070350239,0.5689,3297.8,3297.4,0.585]
[1737070350539,0.60659,3297.7,3297.6,0.60657]
[1737070350736,3.2078,3298.0,3297.4,0.585]
[1737070350931,3.81431,3298.0,3297.9,2.82627706]
[1737070351136,3.81431,3298.0,3297.9,3.43280706]
[1737070351439,3.81431,3298.0,3297.9,44.23280706]
[1737070352335,3.81431,3298.0,3297.9,43.62627706]
[1737070352534,3.81431,3298.0,3297.9,44.23280706]
[1737070353042,3.81431,3298.0,3297.9,43.62627706]
[1737070353430,3.81431,3298.0,3297.9,44.23280706]
[1737070355939,3.81431,3298.0,3297.9,43.62627706]
[1737070356440,3.81431,3298.0,3297.9,44.23280706]
[1737070356441,3.2078,3298.0,3297.9,44.23280706]
[1737070356831,3.2078,3298.0,3297.9,45.45180706]
[1737070357039,0.60647,3298.4,3298.3,0.60644]
[1737070357240,0.60647,3298.4,3298.3,3.43271706]
[1737070358143,0.60644,3298.5,3298.4,0.60643]
[1737070358335,0.5599,3298.9,3298.3,2.82627706]
[1737070358535,0.60637,3298.8,3298.7,3.43265706]
[1737070358737,3.2078,3299.0,3298.9,0.60635]
[1737070358937,5.92500261,3299.4,3298.8,0.6117]
[1737070359238,0.6063,3299.2,3299.0,0.60633]
[1737070359441,0.60631,3299.1,3299.0,0.60633]
[1737070360443,5.34628208,3299.3,3299.2,0.60629]
[1737070360640,5.34628208,3299.3,3299.2,44.23256706]
[1737070361343,2.98040067,3299.3,3299.2,44.23256706]
[1737070362340,0.60628,3299.3,3299.2,44.23256706]
[1737070362547,0.60628,3299.3,3299.2,3.43256706]
[1737070362847,0.60627,3299.4,3299.3,0.60626]
[1737070363047,0.60627,3299.3,3299.2,3.43255706]
[1737070363445,6.18815067,3299.6,3299.5,0.60624]
[1737070363843,0.60644,3298.4,3298.3,4.71426746]
[1737070364147,3.81424,3298.4,3298.3,4.71426746]
[1737070364339,3.81424,3298.4,3298.3,3.78986746]
[1737070365241,1.51622,3298.2,3297.6,4.04527706]
[1737070365438,3.2078,3298.4,3297.6,4.04527706]
[1737070365439,0.60651,3298.0,3297.9,2.33144913]
[1737070366948,0.60651,3298.0,3297.9,43.13144913]
[1737070367453,0.60651,3298.0,3297.9,40.8]
[1737070368549,0.60648,3298.2,3298.1,0.60648]
[1737070368750,2.37333032,3298.3,3298.1,2.82534195]
[1737070368943,2.97981032,3298.2,3298.1,3.43182195]
[1737070369344,2.97981032,3298.2,3298.1,2.82534195]
[1737070369549,2.97981032,3298.2,3298.1,3.43184195]
[1737070369750,2.97981032,3298.2,3298.1,2.82534195]
[1737070370050,2.97981032,3298.2,3298.1,3.43184195]
[1737070370253,0.60648,3298.2,3298.1,4.04164195]
[1737070370639,0.60646,3298.4,3298.3,0.60645]
[1737070372350,2.37333032,3298.6,3298.2,3.2078]
[1737070372551,2.97975032,3298.6,3298.5,3.43176195]
[1737070372753,0.60642,3298.6,3298.5,4.65076195]
[1737070372947,5.58113032,3298.8,3298.7,0.60639]
[1737070373644,2.37333032,3298.8,3298.7,41.40639]
[1737070374054,0.60636,3298.9,3298.8,0.60637]
[1737070374254,2.37333032,3299.2,3298.8,0.613]
[1737070374448,2.97963032,3299.2,3299.1,3.43165195]
[1737070374755,2.37333032,3299.2,3299.1,3.43165195]
[1737070375058,2.97962032,3299.2,3299.1,3.43165195]
[1737070375461,0.60629,3299.2,3299.1,3.43165195]
[1737070375658,0.60629,3299.2,3299.1,2.82534195]
[1737070376657,0.60629,3299.2,3299.1,3.43164195]
[1737070377758,0.60629,3299.2,3299.1,4.04434195]
[1737070378152,0.60629,3299.2,3299.1,4.65065195]
[1737070380761,0.6087,3299.7,3299.1,4.04434195]
[1737070381063,0.60625,3299.5,3299.4,0.60625]
[1737070381863,0.60621,3299.7,3299.6,0.6062]
[1737070382463,0.60621,3299.7,3299.6,41.4062]